bitfinex/quotes_ETHUSD_20241101
["timestamp","ask_amount","ask_price","bid_price","bid_amount"]
[1730493765404,0.005,2528.2,2527.8,4.07974561]
[1730493765769,0.005,2528.2,2527.8,3.95598]
[1730493765969,0.005,2528.2,2527.8,4.07974562]
[1730493766369,0.005,2528.2,2527.9,0.12376562]
[1730493767103,4.72534,2528.1,2527.8,0.12376562]
[1730493767316,0.7698,2528.1,2527.8,0.12376562]
[1730493767473,0.7698,2528.1,2527.8,4.07975562]
[1730493767673,0.7698,2528.1,2527.7,3.95607]
[1730493767997,0.7698,2528.1,2527.8,4.07975562]
[1730493768169,0.7698,2528.1,2527.8,0.12376562]
[1730493768506,4.72534,2528.1,2527.8,0.12376562]
[1730493768690,4.72534,2528.1,2527.7,3.95607]
[1730493769018,4.72534,2528.1,2527.8,0.12377161]
[1730493769019,3.95577,2528.0,2527.8,0.12377161]
[1730493769304,0.7619,2527.8,2527.6,0.12377161]
[1730493770477,0.8077,2528.1,2527.8,3.95597]
[1730493770989,0.8077,2528.1,2527.7,3.95609]
[1730493770990,4.76326,2528.1,2527.7,3.95609]
[1730493771502,4.76326,2528.1,2527.7,4.0798653]
[1730493771711,4.76326,2528.1,2527.7,3.95609]
[1730493773093,4.76326,2528.1,2527.7,4.07986505]
[1730493773682,4.76326,2528.1,2527.7,3.95609]
[1730493774418,4.76326,2528.1,2527.7,0.12377505]
[1730493774805,4.76326,2528.1,2527.6,4.83966505]
[1730493776013,4.76326,2528.1,2527.6,4.71589]
[1730493776210,4.76326,2528.1,2527.6,3.95629]
[1730493776420,4.76326,2528.1,2527.6,4.08006809]
[1730493776700,4.76326,2528.1,2527.6,4.08006813]
[1730493776908,4.76326,2528.1,2527.6,4.08006761]
[1730493777504,4.76326,2528.1,2527.7,0.12377794]
[1730493778000,0.8077,2528.1,2527.7,4.07983794]
[1730493778211,4.76331,2528.1,2527.7,0.12377794]
[1730493778398,4.76331,2528.1,2527.6,4.08006794]
[1730493778574,4.76331,2528.1,2527.7,0.12377794]
[1730493778902,3.9557,2528.0,2527.7,0.12377794]
[1730493779104,3.9557,2528.0,2527.6,3.95629]
[1730493779407,3.9557,2528.0,2527.7,0.1237732]
[1730493779608,4.76326,2528.1,2527.7,0.1237732]
[1730493779809,4.76326,2528.1,2527.6,3.95629]
[1730493779972,4.76326,2528.1,2527.7,0.12377787]
[1730493780171,3.9557,2528.0,2527.6,3.95629]
[1730493780371,0.8077,2528.1,2527.7,0.12377787]
[1730493780672,8.71889,2528.1,2527.6,3.95629]
[1730493780899,4.76327,2528.1,2527.7,0.1237752]
[1730493781216,4.76327,2528.1,2527.6,7.91255]
[1730493781504,4.76327,2528.1,2527.7,0.12377769]
[1730493781681,8.71889,2528.1,2527.6,3.95626]
[1730493782002,3.95581,2528.0,2527.7,0.12377803]
[1730493782201,3.95581,2528.0,2527.6,3.95626]
[1730493782418,3.95581,2528.0,2527.7,0.12377896]
[1730493782578,3.95581,2528.0,2527.6,3.95626]
[1730493782777,3.95581,2528.0,2527.7,0.12377884]
[1730493783083,3.95581,2528.0,2527.8,0.12377885]
[1730493783407,4.8758207,2528.0,2527.6,3.9563]
[1730493783704,3.95573,2528.0,2527.7,0.12377905]
[1730493783909,3.95573,2528.0,2527.8,0.12377905]
[1730493784111,3.95573,2528.0,2527.6,3.9563]
[1730493784299,3.95573,2528.0,2527.7,0.12377517]
[1730493784611,3.95573,2528.0,2527.8,0.12377517]
[1730493784810,3.95573,2528.0,2527.6,4.15434627]
[1730493784981,3.95573,2528.0,2527.7,0.12377898]
[1730493785182,3.95573,2528.0,2527.8,0.12377898]
[1730493785515,7.09160304,2528.0,2527.9,0.12377898]
[1730493785818,7.09160304,2528.0,2527.3,4.4518841]
[1730493785819,0.7684,2527.7,2527.4,0.19804627]
[1730493785972,0.7684,2527.7,2527.3,4.20430626]
[1730493786177,0.7684,2527.7,2527.4,0.32186188]
[1730493786487,0.7684,2527.7,2527.5,0.32186188]
[1730493786689,0.7684,2527.7,2527.6,0.123794]
[1730493786908,4.72456,2527.7,2527.6,0.123794]
[1730493787111,0.7684,2527.7,2527.6,0.123794]
[1730493789215,0.7684,2527.7,2527.6,0.32185693]
[1730493789388,0.7684,2527.7,2527.6,0.1237862]
[1730493789795,0.7684,2527.7,2527.6,0.32184412]
[1730493790007,0.7684,2527.7,2527.6,0.1237862]
[1730493790384,0.7684,2527.7,2527.6,0.32184412]
[1730493790677,0.7684,2527.7,2527.6,0.1237862]
[1730493792996,4.72456,2527.7,2527.6,0.12378936]
[1730493793197,5.197007,2527.7,2527.6,0.12378936]
[1730493793886,3.95634,2527.6,2527.3,0.19806318]
[1730493794221,3.95634,2527.6,2527.4,0.12379825]
[1730493794392,3.95634,2527.6,2527.5,0.12379825]
[1730493795325,4.7246,2527.7,2527.5,0.12379825]
[1730493795491,4.7246,2527.7,2527.3,0.19807707]
[1730493795685,4.7246,2527.7,2527.4,0.12379717]
[1730493796002,4.7246,2527.7,2527.5,0.12379717]
[1730493796197,4.7246,2527.7,2527.3,4.15481707]
[1730493796404,4.7246,2527.7,2527.4,0.12379583]
[1730493796800,4.7246,2527.7,2527.5,0.1237923]
[1730493797017,4.7246,2527.7,2527.6,0.1237923]
[1730493797220,5.59266,2527.7,2527.3,4.15480768]
[1730493797437,4.7246,2527.7,2527.4,0.12379693]
[1730493797619,4.7246,2527.7,2527.5,0.12379693]
[1730493797819,4.7246,2527.7,2527.3,3.95674]
[1730493798022,4.7246,2527.7,2527.4,0.12379694]
[1730493798230,3.95633,2527.6,2527.5,0.12379694]
[1730493798844,4.7246,2527.7,2527.5,0.12379694]
[1730493799045,3.95633,2527.6,2527.3,0.19806768]
[1730493799338,3.95633,2527.6,2527.4,0.12380007]
[1730493799547,3.95633,2527.6,2527.2,4.15500768]
[1730493799837,3.95633,2527.6,2527.3,0.12380005]
[1730493800039,3.95633,2527.6,2527.4,0.12380005]
[1730493800239,3.95633,2527.6,2527.5,0.12380005]
[1730493800639,3.95633,2527.6,2527.2,4.15500768]
[1730493800938,3.95633,2527.6,2527.3,0.12380021]
[1730493801242,4.72837,2527.5,2527.4,0.12380021]
[1730493801442,0.7719,2527.5,2527.0,3.95718]
[1730493801630,0.7719,2527.5,2527.1,0.12380978]
[1730493801950,4.72838,2527.5,2527.2,0.12380978]
[1730493802134,4.72838,2527.5,2527.3,0.12380978]
[1730493802311,5.57672069,2527.5,2527.1,3.95702]
[1730493802510,5.57672069,2527.5,2527.2,0.12381001]
[1730493802842,5.57672069,2527.5,2527.3,0.12380891]
[1730493803045,5.57672069,2527.5,2527.1,3.95702]
[1730493803250,0.8286,2527.7,2527.3,3.95678]
[1730493803613,0.005,2528.2,2527.6,3.95618]
[1730493803614,0.8286,2528.1,2527.6,3.95618]
[1730493803849,0.8286,2528.1,2527.8,3.956]
[1730493804516,0.8286,2528.1,2527.7,3.95615]
[1730493804718,0.8286,2528.1,2527.8,0.12377824]
[1730493805050,3.96047,2528.2,2527.7,3.95615]
[1730493805349,3.96047,2528.2,2527.8,0.12377858]
[1730493805551,3.96047,2528.2,2527.7,3.95615]
[1730493805727,7.91595,2528.2,2527.8,0.12377866]
[1730493805928,7.91595,2528.2,2527.7,3.95615]
[1730493806123,7.91595,2528.2,2527.8,0.12377883]
[1730493806327,7.91595,2528.2,2527.7,3.95615]
[1730493806642,7.91595,2528.2,2527.8,0.12377898]
[1730493806845,3.96047,2528.2,2527.9,0.1237774]
[1730493807051,3.95555,2528.1,2527.7,4.15419247]
[1730493807347,3.95555,2528.1,2527.8,0.12377423]
[1730493807526,3.95555,2528.1,2527.9,0.12377423]
[1730493807727,3.95555,2528.1,2527.7,4.15419448]
[1730493807926,3.96047,2528.2,2527.8,0.90587763]
[1730493808128,3.96047,2528.2,2527.9,0.12377763]
[1730493808440,3.96047,2528.2,2527.8,0.7821]
[1730493808644,3.96047,2528.2,2527.9,0.12377596]
[1730493808847,3.96047,2528.2,2527.8,0.7821]
[1730493809048,3.96047,2528.2,2527.9,0.12377904]
[1730493809249,3.96047,2528.2,2527.8,0.7821]
[1730493809444,3.96047,2528.2,2527.9,0.12377873]
[1730493809759,3.96047,2528.2,2527.8,0.7821]
[1730493809961,3.96047,2528.2,2527.9,0.12377874]
[1730493810158,3.96047,2528.2,2527.8,0.7821]
[1730493810372,3.95554,2528.1,2527.9,0.1237789]
[1730493810575,3.95554,2528.1,2527.8,0.7821]
[1730493810726,3.95554,2528.1,2527.9,0.12377893]
[1730493810929,3.95554,2528.1,2527.8,0.7821]
[1730493811326,3.95554,2528.1,2527.9,0.12377873]
[1730493811631,3.95554,2528.1,2527.8,0.7821]
[1730493811830,3.95554,2528.1,2527.9,0.12377904]
[1730493812138,3.95554,2528.1,2527.8,0.7821]
[1730493812335,3.95554,2528.1,2527.9,0.12377926]
[1730493812570,3.95571,2528.0,2527.7,0.19804676]
[1730493812865,0.7828,2527.9,2527.8,0.12377949]
[1730493813567,4.73865,2527.9,2527.8,0.12377949]
[1730493818843,4.73865,2527.9,2527.4,8.66866]
[1730493819175,4.73865,2527.9,2527.5,3.95647]
[1730493819332,4.73865,2527.9,2527.6,0.12378448]
[1730493819530,4.73865,2527.9,2527.7,0.32183965]
[1730493819893,4.73865,2527.9,2527.8,0.12378448]
[1730493820064,3.95572,2528.0,2527.8,0.12378448]
[1730493820229,3.95572,2528.0,2527.9,0.12378448]
[1730493820425,4.96920403,2528.0,2527.9,0.12378448]
[1730493822269,4.96920403,2528.0,2527.5,3.95647]
[1730493822469,3.95572,2528.0,2527.9,0.12378155]
[1730493826269,4.72676,2528.1,2527.9,0.12378155]
[1730493826475,0.005,2528.2,2528.0,0.12378155]
[1730493826672,0.005,2528.2,2527.8,0.19804102]
[1730493826673,3.9604,2528.2,2527.8,0.19804102]
[1730493826967,3.9604,2528.2,2527.9,0.12377489]
[1730493827171,3.9604,2528.2,2528.0,0.12377489]
[1730493827407,4.98900085,2528.2,2527.8,0.19804572]
[1730493827679,4.98900085,2528.2,2527.9,0.12377893]
[1730493827973,4.98900085,2528.2,2528.0,0.12377782]
[1730493828175,4.98900085,2528.2,2527.8,0.19804572]
[1730493828472,3.95555,2528.1,2527.9,0.12377788]
[1730493828671,3.95555,2528.1,2527.8,0.19803899]
[1730493828849,3.95555,2528.1,2527.9,0.12377852]
[1730493829046,3.95555,2528.1,2528.0,0.12377852]
[1730493829265,3.95555,2528.1,2527.7,4.71918]
[1730493829573,3.95555,2528.1,2527.8,0.19804627]
[1730493829969,0.005,2528.2,2527.9,3.95577]
[1730493830168,0.005,2528.2,2527.9,4.15380511]
[1730493830357,0.005,2528.2,2528.0,0.12377931]
[1730493830545,0.005,2528.2,2528.1,0.12377931]
[1730493831878,0.005,2528.2,2528.1,0.12377111]
[1730493832277,0.005,2528.2,2527.9,0.19803159]
[1730493832473,0.005,2528.2,2528.0,0.12377248]
[1730493832784,3.96038,2528.2,2527.9,0.19803159]
[1730493832984,0.7678,2527.9,2527.4,3.95655]
[1730493833182,4.72377,2527.9,2527.4,4.20409735]
[1730493833390,4.72377,2527.9,2527.5,0.32184865]
[1730493833576,4.72377,2527.9,2527.6,0.32184865]
[1730493833781,4.72377,2527.9,2527.7,0.32184865]
[1730493834115,4.72377,2527.9,2527.8,0.12378794]
[1730493835207,3.95603,2527.8,2527.5,0.19806028]
[1730493835397,3.95603,2527.8,2527.6,0.12379201]
[1730493835592,3.95603,2527.8,2527.7,0.12379201]
[1730493836602,3.95603,2527.8,2527.7,0.12379379]
[1730493836912,5.07001814,2527.8,2527.7,0.12379379]
[1730493840229,0.005,2528.2,2527.9,3.95585]
[1730493840388,0.005,2528.2,2528.0,4.07942366]
[1730493840590,0.005,2528.2,2528.1,0.12379366]
[1730493840812,0.005,2528.2,2528.1,0.32181858]
[1730493841530,0.005,2528.2,2528.1,0.12379366]
[1730493841885,0.005,2528.2,2528.1,0.32181662]
[1730493842716,0.005,2528.2,2528.0,4.70963]
[1730493842898,0.005,2528.2,2528.1,0.12376133]
[1730493843520,3.96038,2528.2,2528.1,0.12376133]
[1730493844326,0.005,2528.2,2528.1,0.12376133]
[1730493845733,3.96038,2528.2,2527.8,0.9801267]
[1730493845935,3.96038,2528.2,2527.9,0.12377457]
[1730493846239,3.96038,2528.2,2527.8,0.7821]
[1730493846742,0.005,2528.2,2528.0,0.1237769]
[1730493846944,0.005,2528.2,2528.1,0.12377554]
[1730493847153,0.005,2528.2,2528.1,5.60580416]
[1730493847305,0.005,2528.2,2528.1,7.61631696]
[1730493848506,0.005,2528.2,2528.1,8.16631696]
[1730493848702,0.005,2528.2,2528.1,8.08720868]
[1730493849910,0.005,2528.2,2528.1,8.08715015]
[1730493853655,0.005,2528.2,2528.1,7.76540576]
[1730493853850,0.005,2528.2,2528.1,7.88915386]
[1730493854055,0.005,2528.2,2528.1,8.08715128]
[1730493854227,0.005,2528.2,2528.1,8.28514899]
[1730493856726,0.005,2528.2,2528.1,8.08715157]
[1730493860630,0.005,2528.2,2528.1,8.08714804]
[1730493861430,0.005,2528.2,2528.1,10.76540576]
[1730493862730,0.005,2528.2,2528.1,32.80197096]
[1730493863030,0.1281182,2528.4,2528.3,8.26552]
[1730493863251,0.1281182,2528.4,2528.3,13.90289567]
[1730493863471,0.1281182,2528.4,2528.3,14.27408823]
[1730493866132,0.1281182,2528.4,2528.3,13.70492631]
[1730493866445,0.0781182,2528.4,2528.3,3.99201597]
[1730493866630,0.0781182,2528.4,2528.3,0.3216916]
[1730493867260,0.0781182,2528.4,2528.2,3.95536]
[1730493867461,0.0781182,2528.4,2528.1,29.91034034]
[1730493867760,0.0781182,2528.4,2528.1,25.95490034]
[1730493867928,0.0781182,2528.4,2528.1,21.99949034]
[1730493868134,0.0781182,2528.4,2528.2,3.95537]
[1730493868368,0.0781182,2528.4,2528.1,6.18501034]
[1730493868570,0.0781182,2528.4,2528.2,1.04224958]
[1730493868986,0.0781182,2528.4,2528.2,0.91850103]
[1730493870092,0.0781182,2528.4,2528.2,1.0422461]
[1730493870457,0.0781182,2528.4,2528.2,0.91850103]
[1730493870894,0.0781182,2528.4,2528.1,5.40282034]
[1730493871056,0.0781182,2528.4,2528.1,9.35828034]
[1730493871252,0.0781182,2528.4,2528.2,0.12374595]
[1730493871476,0.0781182,2528.4,2528.2,0.123746]
[1730493874096,0.0781182,2528.4,2528.2,4.079076]
[1730493874672,0.0781182,2528.4,2528.2,0.123746]
[1730493874893,0.0781182,2528.4,2528.1,5.40282034]
[1730493875197,0.0781182,2528.4,2528.2,0.12374581]
[1730493876491,0.0781182,2528.4,2528.2,4.07911581]
[1730493878398,0.0781182,2528.4,2528.2,0.12374581]
[1730493878580,0.0781182,2528.4,2528.2,0.12374596]
[1730493879499,0.0781182,2528.4,2528.3,0.12374596]
[1730493882268,0.0781182,2528.4,2528.2,3.95529]
[1730493882493,0.0781182,2528.4,2528.3,0.12374527]
[1730493884311,0.0781182,2528.4,2528.3,0.3217377]
[1730493884506,0.0781182,2528.4,2528.3,0.12374527]
[1730493884725,0.0781182,2528.4,2528.3,0.3217377]
[1730493884876,0.0781182,2528.4,2528.3,0.12374527]
[1730493884877,4.8127882,2528.4,2528.3,0.12374527]
[1730493885078,4.74072,2528.3,2528.0,0.19799243]
[1730493885310,3.95545,2528.2,2528.1,0.12377044]
[1730493885976,3.95545,2528.2,2527.7,3.95609]
[1730493886284,3.95545,2528.2,2528.1,0.12377179]
[1730493886484,4.8809937,2528.2,2528.1,0.12377179]
[1730493886687,4.8809937,2528.2,2528.1,0.12377136]
[1730493887207,5.6512937,2528.2,2528.1,0.12377136]
[1730493887686,5.6512937,2528.2,2527.9,0.19803486]
[1730493887887,5.6512937,2528.2,2528.0,0.12377199]
[1730493888102,0.96065337,2528.1,2527.9,0.19803486]
[1730493888290,0.96065337,2528.1,2528.0,0.12377106]
[1730493889391,0.8124,2528.1,2528.0,0.12377106]
[1730493889915,4.76793,2528.1,2528.0,0.12377106]
[1730493890099,4.76793,2528.1,2527.4,6.95655]
[1730493890318,0.8124,2527.8,2527.4,6.95655]
[1730493890473,0.8124,2527.8,2527.5,0.32183184]
[1730493890812,0.8124,2527.8,2527.6,0.12378344]
[1730493891033,0.8124,2527.8,2527.5,0.19806181]
[1730493891034,4.76868,2527.7,2527.5,0.19806181]
[1730493891320,4.76868,2527.7,2527.3,0.12380201]
[1730493891529,3.9564,2527.6,2527.1,1.44739034]
[1730493891728,0.8124,2527.5,2527.2,0.12380137]
[1730493891931,0.8124,2527.5,2527.3,0.12380137]
[1730493892134,0.8124,2527.5,2527.1,5.40448034]
[1730493892333,0.8124,2527.5,2527.2,4.0807222]
[1730493892627,0.8124,2527.5,2527.3,0.1238022]
[1730493892826,0.8124,2527.5,2527.2,3.95692]
[1730493893031,0.8124,2527.5,2527.3,0.12380157]
[1730493893191,0.8124,2527.5,2527.2,0.12380157]
[1730493893520,0.8124,2527.5,2527.1,2.48021656]
[1730493893725,0.8124,2527.5,2527.2,0.12380177]
[1730493893939,3.95665,2527.4,2527.2,0.12380177]
[1730493894124,3.95665,2527.4,2527.0,3.12380177]
[1730493894321,4.76888,2527.5,2527.0,3.12380177]
[1730493894640,4.76888,2527.5,2527.1,0.12380177]
[1730493895612,4.76888,2527.5,2527.0,3.12380177]
[1730493895922,4.76888,2527.5,2527.0,7.08099177]
[1730493896129,4.76888,2527.5,2527.0,4.32677821]
[1730493896306,4.76888,2527.5,2527.0,4.45058211]
[1730493896739,3.95688,2527.3,2527.0,0.1238039]
[1730493897030,4.72166,2527.4,2526.9,3.95741]
[1730493897199,4.72166,2527.4,2526.8,3.95755]
[1730493897405,4.72166,2527.4,2526.8,4.97201903]
[1730493898404,3.95679,2527.3,2526.8,4.97201903]
[1730493898994,7.91366,2527.3,2526.8,1.01446903]
[1730493899393,0.765,2527.2,2526.8,1.01446903]
[1730493900137,0.8138,2527.0,2526.4,10.9162]
[1730493900292,0.7911,2527.0,2526.1,21.98659034]
[1730493900493,0.7911,2526.6,2526.1,24.49785]
[1730493900723,0.7911,2526.6,2526.1,26.71904503]
[1730493900724,4.749,2526.6,2526.1,26.71904503]
[1730493901107,3.95812,2526.5,2526.1,22.76039503]
[1730493901346,0.7915,2526.3,2526.0,19.77]
[1730493901498,3.95854,2526.2,2526.0,19.77]
[1730493901996,3.95854,2526.2,2525.7,19.77]
[1730493901997,0.7915,2526.0,2525.7,19.77]
[1730493902191,4.75034,2526.0,2525.8,19.77]
[1730493902396,4.75034,2526.0,2525.9,19.77]
[1730493902997,4.75048,2525.9,2525.4,19.77]
[1730493903197,4.75048,2525.9,2525.6,3.95937]
[1730493903198,0.7915,2525.9,2525.6,3.95937]
[1730493904142,0.7867,2526.1,2525.6,3.95945]
[1730493904437,0.7867,2526.1,2525.7,3.95922]
[1730493904649,3.95822,2526.4,2525.5,23.49045529]
[1730493904846,4.72902,2526.4,2525.9,3.95896]
[1730493905148,0.7708,2526.4,2525.9,3.95896]
[1730493905330,0.7708,2526.4,2526.0,3.95873]
[1730493908607,0.7708,2526.4,2526.0,23.72873]
[1730493909650,3.95838,2526.3,2526.0,19.77]
[1730493910936,3.95838,2526.3,2525.8,23.72912]
[1730493911108,0.7708,2526.4,2525.9,6.727732]
[1730493911310,0.7708,2526.4,2526.0,3.95881]
[1730493911530,0.7708,2526.4,2526.0,3.95874]
[1730493911730,0.7708,2526.4,2526.0,7.91745]
[1730493912131,0.7708,2526.4,2526.0,3.95871]
[1730493912330,0.7708,2526.4,2526.1,0.6727542]
[1730493912610,3.95784,2526.7,2526.1,0.6727542]
[1730493912611,0.8259,2526.6,2526.1,4.6314142]
[1730493912833,4.7838,2526.6,2526.1,4.6314142]
[1730493913434,3.95806,2526.5,2526.1,0.6727542]
[1730493914036,0.8259,2526.6,2526.1,0.6727542]
[1730493914262,4.78381,2526.6,2526.2,1.9168872]
[1730493915151,0.8259,2526.6,2526.2,5.8753972]
[1730493915352,0.8259,2526.6,2526.3,3.95834]
[1730493915554,3.9577,2526.8,2526.3,3.95834]
[1730493915555,4.7873,2526.8,2526.3,3.95834]
[1730493916020,0.8296,2526.8,2526.4,3.95818]
[1730493916221,0.8296,2526.8,2526.4,4.94152072]
[1730493916524,0.8296,2526.8,2526.4,0.98334072]
[1730493916841,3.9578,2526.7,2526.4,0.98334072]
[1730493917044,3.9578,2526.7,2526.2,5.8753972]
[1730493917356,4.78719,2526.8,2526.2,5.8753972]
[1730493917357,4.78719,2526.8,2526.3,3.95827]
[1730493918561,8.74489,2526.8,2526.3,3.95827]
[1730493918767,3.95789,2526.6,2526.1,19.77]
[1730493919072,3.95811,2526.5,2526.1,19.77]
[1730493920671,4.73073,2526.4,2526.1,19.77]
[1730493920820,3.95842,2526.3,2526.1,19.77]
[1730493921025,4.73101,2526.2,2526.1,19.77]
[1730493921340,3.95873,2526.1,2525.6,3.95939]
[1730493921525,3.95873,2526.1,2525.6,4.829498]
[1730493926831,0.7725,2526.2,2525.6,0.870108]
[1730493927027,4.73104,2526.2,2525.7,3.95929]
[1730493927771,3.95868,2526.1,2525.6,4.829538]
[1730493928148,3.95884,2526.0,2525.6,4.829538]
[1730493928532,3.95884,2526.0,2525.6,3.95943]
[1730493928734,0.7901,2525.9,2525.6,3.95943]
[1730493930188,0.7901,2525.9,2525.5,4.08347752]
[1730493930558,0.7901,2525.9,2525.4,0.12387752]
[1730493930752,0.7901,2525.9,2525.5,3.95947]
[1730493930950,0.7901,2525.9,2525.5,4.08334752]
[1730493931285,0.7901,2525.9,2525.7,3.95927]
[1730493931588,0.7604,2526.1,2525.7,3.95927]
[1730493931759,0.7604,2526.1,2525.9,3.95898]
[1730493932687,0.7604,2526.1,2525.8,3.95907]
[1730493932885,0.7604,2526.1,2525.7,0.7821]
[1730493933088,0.7604,2526.1,2525.8,3.95911]
[1730493936889,0.7604,2526.1,2525.8,4.750966]
[1730493938456,0.7604,2526.1,2525.8,4.750926]
[1730493938657,0.7604,2526.1,2525.8,3.9591]
[1730493939989,0.7604,2526.1,2525.7,3.95929]
[1730493940196,0.7604,2526.1,2525.7,7.9185]
[1730493940395,0.7604,2526.1,2525.7,3.95921]
[1730493941485,0.7604,2526.1,2525.5,4.86181988]
[1730493941680,4.71914,2526.1,2525.6,3.95935]
[1730493942571,4.71914,2526.1,2525.7,0.12387652]
[1730493942767,5.586906,2526.1,2525.7,0.32207896]
[1730493942973,5.586906,2526.1,2525.8,0.19820244]
[1730493943268,5.586906,2526.1,2525.5,4.45498212]
[1730493943269,0.8228,2525.8,2525.5,0.49550212]
[1730493943470,0.8228,2525.8,2525.6,0.32207905]
[1730493943658,0.8228,2525.8,2525.7,0.32207905]
[1730493944807,0.8228,2525.8,2525.7,0.32207105]
[1730493944962,0.7829,2526.0,2525.7,4.28134105]
[1730493945170,0.7829,2526.0,2525.8,0.32207105]
[1730493945370,0.7829,2526.0,2525.9,0.32207105]
[1730493945917,0.7829,2526.0,2525.9,0.19819379]
[1730493946073,0.7829,2526.0,2525.9,0.32206491]
[1730493946271,3.95835,2526.4,2525.9,0.32206491]
[1730493946272,0.7559,2526.2,2525.9,0.32206491]
[1730493946589,0.7559,2526.2,2526.0,0.32206491]
[1730493946787,4.71442,2526.2,2526.1,0.12387112]
[1730493949508,4.71442,2526.2,2525.8,0.19819632]
[1730493949671,4.71442,2526.2,2525.9,0.32206902]
[1730493950007,4.71442,2526.2,2526.0,0.1238727]
[1730493950169,4.71442,2526.2,2526.1,0.1238727]
[1730493951184,0.7559,2526.2,2526.1,0.1238727]
[1730493951394,3.68450604,2527.0,2526.1,0.32206774]
[1730493951395,3.95809,2526.5,2526.1,0.32206774]
[1730493951575,0.8076,2526.4,2526.2,0.32206774]
[1730493951771,4.7658,2526.4,2526.3,0.1238727]
[1730493953614,4.7658,2526.4,2525.9,3.95891]
[1730493953817,4.7658,2526.4,2526.3,0.12386169]
[1730493954274,4.7658,2526.4,2526.3,0.12386338]
[1730493957008,4.7658,2526.4,2526.3,0.12386207]
[1730493961106,0.8076,2526.4,2526.3,0.12386207]
[1730493961290,3.95791,2526.6,2526.3,0.12386207]
[1730493961291,4.76451,2526.6,2526.3,0.12386207]
[1730493961485,4.76451,2526.6,2526.4,0.12386207]
[1730493961684,4.76451,2526.6,2526.5,0.12386207]
[1730493962191,4.76451,2526.6,2526.2,0.19816337]
[1730493962403,4.76451,2526.6,2526.3,0.32201781]
[1730493962595,3.95804,2526.5,2526.4,0.12385444]
[1730493962799,5.636895,2526.5,2526.4,0.12385444]
[1730493963002,0.8066,2526.4,2526.0,0.19818934]
[1730493963186,0.8066,2526.4,2525.6,4.96442304]
[1730493963187,0.8066,2526.1,2525.8,0.24773667]
[1730493963406,0.8066,2526.1,2525.7,4.20695667]
[1730493963725,0.8066,2526.1,2525.9,0.12387211]
[1730493964020,4.76533,2526.1,2526.0,0.12387386]
[1730493964521,4.76533,2526.1,2526.0,0.32207417]
[1730493966844,4.76533,2526.1,2525.8,0.24775238]
[1730493967043,4.76533,2526.1,2525.5,3.20175576]
[1730493967044,4.76533,2526.1,2526.0,0.1982019]
[1730493967215,3.95882,2526.0,2525.8,0.24775238]
[1730493967546,3.95882,2526.0,2525.9,0.32208776]
[1730493967747,3.95882,2526.0,2525.9,0.32208848]
[1730493967907,3.95882,2526.0,2525.9,0.32209163]
[1730493968299,3.95882,2526.0,2525.9,0.12387991]
[1730493968602,3.95882,2526.0,2525.9,0.32208895]
[1730493969206,3.95882,2526.0,2525.9,0.12387991]
[1730493970804,0.8066,2526.1,2525.9,0.12387991]
[1730493971108,3.95864,2526.2,2526.0,0.32207858]
[1730493971328,3.95864,2526.2,2526.1,0.12387991]
[1730493973955,3.95864,2526.2,2525.7,5.40506408]
[1730493973956,3.95868,2526.1,2525.8,0.19820021]
[1730493974108,3.95864,2526.2,2526.1,0.12387513]
[1730493974451,3.95864,2526.2,2526.1,0.12387484]
[1730493977421,3.95864,2526.2,2526.1,0.12387284]
[1730493982655,5.645601,2526.2,2526.1,0.12387284]
[1730493984151,3.95923,2525.8,2525.5,0.24774568]
[1730493984348,7.91846,2525.8,2525.6,0.32210652]
[1730493984643,7.91846,2525.8,2525.7,0.32210652]
[1730493984846,3.95923,2525.8,2525.7,0.32210652]
[1730493985047,3.95923,2525.8,2525.3,6.18784408]
[1730493985254,3.95923,2525.8,2525.4,1.25208172]
[1730493985436,3.95923,2525.8,2525.3,7.7082405]
[1730493985642,3.95922,2525.8,2525.5,0.32211008]
[1730493985820,3.95922,2525.8,2525.6,0.19822159]
[1730493986019,3.95922,2525.8,2525.7,0.32211008]
[1730493989070,5.516243,2525.8,2525.7,0.12388849]
[1730493989281,3.95943,2525.7,2525.2,0.24777699]
[1730493989441,3.95947,2525.6,2525.3,0.32214653]
[1730493989636,3.95947,2525.6,2525.4,0.32214653]
[1730493989868,3.95947,2525.6,2525.5,0.12390133]
[1730493990035,3.94947,2525.6,2525.5,0.12390133]
[1730493991803,4.71497,2525.6,2525.5,0.12390133]
[1730493992869,5.6615923,2525.6,2525.5,0.12390133]
[1730493993257,5.6615923,2525.6,2525.1,0.19825143]
[1730493993258,1.7121223,2525.6,2525.1,0.19825143]
[1730493993460,1.7121223,2525.6,2525.2,0.32216107]
[1730493993461,3.95986,2525.4,2525.2,0.32216107]
[1730493993675,3.95986,2525.4,2524.9,6.18847408]
[1730493993676,3.95986,2525.4,2525.3,0.12390964]
[1730493994564,4.75616,2525.4,2525.3,0.12390964]
[1730493994792,0.7963,2525.1,2524.9,0.19825143]
[1730493994937,0.7963,2525.1,2525.0,0.32216619]
[1730493995141,4.75659,2525.1,2525.0,0.12391476]
[1730493995635,4.75659,2525.1,2524.9,0.12391476]
[1730493995636,3.96039,2525.0,2524.9,0.12391476]
[1730493995834,3.96039,2525.0,2524.3,2.22794408]
[1730493996039,0.83,2524.8,2524.4,0.32222439]
[1730493996266,0.83,2524.8,2524.5,0.12393246]
[1730493996484,0.83,2524.8,2524.3,7.03868276]
[1730493996654,0.83,2524.8,2524.4,4.2834708]
[1730493996979,0.83,2524.8,2524.5,0.12393492]
[1730493997141,0.83,2524.8,2524.6,0.12393492]
[1730493997351,0.83,2524.8,2524.7,0.12393492]
[1730493997669,0.83,2524.8,2524.5,0.12393492]
[1730493997877,0.83,2524.8,2524.6,0.12393492]
[1730493998282,0.83,2524.8,2524.5,0.12393492]
[1730493998588,3.96086,2524.7,2524.4,0.12393492]
[1730493998786,0.83,2524.8,2524.5,0.12393492]
[1730493998972,4.79072,2524.8,2524.4,0.12393492]
[1730493999156,4.79072,2524.8,2524.5,0.12393492]
[1730493999478,4.79072,2524.8,2524.4,0.12393492]